lending/lending_fUSD_20240206
["ID","MTS","AMOUNT","RATE_DAILY","PERIOD"]
[313345241,1707190237742,-157.48208176,0.00022794,2]
[313345242,1707190237752,-156.5649507,0.00022794,2]
[313345243,1707190237761,-155.74448929,0.00022794,2]
[313345244,1707190237770,-326.68198758,0.00022794,2]
[313345245,1707190237902,-2923.77800463,0.00022794,2]
[313345246,1707190237912,-384.74381036,0.00022794,2]
[313345247,1707190237921,-273.68824993,0.00022794,2]
[313345248,1707190237931,-262.14425499,0.00022795,2]
[313345249,1707190237940,-150.01,0.00022795,2]
[313345250,1707190237949,-3309.97832316,0.00022795,2]
[313345251,1707190237958,-30054.1662272,0.00022801,2]
[313345259,1707190238241,-416.64948551,0.00022801,2]
[313345260,1707190238255,-578.96509772,0.00022801,2]
[313345265,1707190238312,150.0,0.00021932,2]
[313345268,1707190238335,-3954.363667,0.00022801,2]
[313345340,1707190240311,-3309.97832316,0.00022795,2]
[313345341,1707190240322,-12343.86167684,0.00022801,2]
[313345366,1707190242826,-670.14303817,0.00022793,2]
[313345376,1707190242883,-638.53499469,0.00022793,2]
[313345378,1707190242893,-97.91500531,0.00022801,2]
[313345381,1707190242905,-627.52602902,0.00022801,2]
[313345386,1707190242943,-48302.473478,0.00022801,2]
[313345388,1707190242952,-14340.81865529,0.00022801,2]
[313345405,1707190243144,-325.39435214,0.00022801,2]
[313345406,1707190243156,-686.8794022,0.00022801,2]
[313345407,1707190243168,-340.51000542,0.00022801,2]
[313345408,1707190243179,-463.99311828,0.00022801,2]
[313345409,1707190243195,-2174.77196126,0.00022801,2]
[313345724,1707190246131,-1000.0,0.00022744,2]
[313345725,1707190246142,-156.60052001,0.000228,2]
[313345726,1707190246152,-655.28097551,0.000228,2]
[313345727,1707190246163,-150.01,0.000228,2]
[313345728,1707190246173,-1225.41804807,0.000228,2]
[313345729,1707190246185,-561.24121014,0.000228,2]
[313345730,1707190246198,-1523.31906495,0.000228,2]
[313345731,1707190246209,-429.68750037,0.00022801,2]
[313345732,1707190246221,-71484.04730222,0.00022801,2]
[313345741,1707190248221,151.61362838,0.00022,2]
[313345742,1707190255854,682.0,0.00022,15]
[313345743,1707190258185,323.43761183,0.00022801,3]
[313345744,1707190258296,247.83228978,0.00022807,3]
[313345745,1707190294981,1048.9649,0.00022495,2]
[313345746,1707190298477,468.9349,0.00022495,2]
[313345747,1707190325047,1000.0,0.00022495,2]
[313345748,1707190380183,1000.0,0.00022495,2]
[313345749,1707190405736,524.11263384,0.00022807,3]
[313345750,1707190426457,242.13594167,0.00022461,2]
[313345751,1707190431442,242.13594151,0.00022484,2]
[313345752,1707190459268,165.21,0.00021735,2]
[313345753,1707190511897,203.86229138,0.000225,2]
[313345754,1707190532691,155.0,0.000225,2]
[313345755,1707190536905,150.67,0.00019811,2]
[313345756,1707190537133,150.67,0.000222,2]
[313345757,1707190550925,321.7,0.00021895,2]
[313345758,1707190551133,321.7,0.00021955,2]
[313345759,1707190551341,321.7,0.00022016,2]
[313345760,1707190551733,321.7,0.00022076,2]
[313345761,1707190551766,420.99179259,0.000225,2]
[313345762,1707190551930,321.7,0.00022136,2]
[313345763,1707190552360,321.7,0.00022196,2]
[313345764,1707190552587,321.7,0.00022256,2]
[313345765,1707190552791,321.7,0.00022316,2]
[313345766,1707190552955,221.30987825,0.000225,2]
[313345767,1707190553119,944.15552847,0.000225,2]
[313345768,1707190553191,321.7,0.00022376,2]
[313345769,1707190553462,321.7,0.00022436,2]
[313345770,1707190553875,321.7,0.00022496,2]
[313345771,1707190572090,737.6,0.00021724,2]
[313345772,1707190582098,154.91,0.00021724,2]
[313345773,1707190594109,151.0206,0.00023,3]
[313345774,1707190595059,151.0206,0.00023,3]
[313345775,1707190595789,151.0206,0.00023,3]
[313345776,1707190596689,151.0206,0.00023,3]
[313345777,1707190597697,151.0206,0.00023,3]
[313345778,1707190614173,296.65571008,0.000225,2]
[313345779,1707190675794,167.0,0.00022376,2]
[313345780,1707190695012,296.24,0.00021724,2]
[313345781,1707190800267,150.0,0.00022,2]
[313345782,1707190855172,199.36,0.00021728,2]
[313345783,1707190887702,150.0,0.00022,2]
[313345784,1707190956646,246.76,0.00021906,2]
[313345785,1707190956841,246.76,0.00021966,2]
[313345786,1707190957023,246.76,0.00022026,2]
[313345787,1707190957236,246.76,0.00022086,2]
[313345788,1707190957618,246.76,0.00022146,2]
[313345789,1707190957829,246.76,0.00022207,2]
[313345790,1707190958036,246.76,0.00022267,2]
[313345791,1707190958237,246.76,0.00022327,2]
[313345792,1707190958455,246.76,0.00022387,2]
[313345793,1707190958649,246.76,0.00022447,2]
[313345794,1707191034917,409.92,0.00021731,2]
[313345795,1707191037972,2500.0,0.00022427,2]
[313345796,1707191039076,150.0,0.00022,2]
[313345797,1707191047956,155.25,0.00021729,2]
[313345798,1707191049724,150.75,0.00019811,2]
[313345799,1707191049942,150.75,0.000222,2]
[313345800,1707191061938,268.1353497,0.00022427,2]
[313345801,1707191066912,268.13534969,0.00022452,2]
[313345802,1707191071920,268.13534969,0.00022477,2]
[313345803,1707191115457,152.99,0.00022351,2]
[313345804,1707191132119,-268.13534969,0.00022502,2]
[313345805,1707191132141,-246.76,0.00022507,2]
[313345806,1707191132161,-5465.47341339,0.00022526,2]
[313345807,1707191132182,-237.57290163,0.00022526,2]
[313345808,1707191132202,-150.0,0.00022526,2]
[313345809,1707191132222,-300.0,0.00022526,2]
[313345810,1707191132244,-268.13534969,0.00022527,2]
[313345811,1707191132263,-169.90301496,0.00022527,2]
[313345812,1707191132283,-169.90301496,0.00022527,2]
[313345813,1707191132303,-24391.41695565,0.00022527,2]
[313345814,1707191189898,296.24,0.00021718,2]
[313345815,1707191194094,-237.57512915,0.00022526,2]
[313345816,1707191252082,-1434.4357223,0.00022526,2]
[313345817,1707191252102,-390.58352314,0.00022527,2]
[313345818,1707191252121,-155.71076745,0.00022528,2]
[313345819,1707191252140,-204.02044638,0.00022529,2]
[313345820,1707191252160,-11136.10549591,0.00022548,2]
[313345821,1707191252180,-153.30214944,0.00022548,2]
[313345822,1707191252201,-268.13534969,0.00022551,2]
[313345823,1707191252225,-6619.25,0.00022556,2]
[313345824,1707191252244,-864.84,0.00022556,2]
[313345825,1707191252264,-278.28,0.00022556,2]
[313345826,1707191252285,-246.76,0.00022567,2]
[313345827,1707191252304,-235.12543263,0.00022569,2]
[313345828,1707191252323,-9159.62,0.00022569,2]
[313345829,1707191252342,-499.99,0.00022569,2]
[313345830,1707191252361,-581.22,0.00022569,2]
[313345831,1707191252380,-150.99,0.00022569,2]
[313345832,1707191252400,-268.13534969,0.00022576,2]
[313345833,1707191252419,-4000.0,0.0002258,2]
[313345834,1707191252438,-831.76136269,0.00022595,2]
[313345835,1707191252457,-268.13534969,0.00022601,2]
[313345836,1707191252478,-800.0,0.00022614,2]
[313345837,1707191252499,-200.0,0.00022616,2]
[313345838,1707191252519,-800.0,0.00022616,2]
[313345839,1707191252538,-200.0,0.00022618,2]
[313345840,1707191252557,-800.0,0.00022618,2]
[313345841,1707191252577,-268.13534969,0.00022626,2]
[313345842,1707191252598,-246.76,0.00022627,2]
[313345843,1707191252617,-2500.0,0.00022632,2]
[313345844,1707191252637,-268.13534969,0.00022651,2]
[313345845,1707191252657,-268.13534969,0.00022676,2]
[313345846,1707191252678,-246.76,0.00022687,2]
[313345847,1707191252696,-1135.7608,0.000227,2]
[313345848,1707191252715,-2885.6967,0.000227,2]
[313345849,1707191252735,-268.13534969,0.00022701,2]
[313345850,1707191252754,-1623.26267159,0.00022701,2]
[313345851,1707191252774,-150.0,0.00022719,2]
[313345852,1707191252794,-150.0,0.00022724,2]
[313345853,1707191252815,-268.13534969,0.00022726,2]
[313345854,1707191252835,-150.0,0.00022726,2]
[313345855,1707191252854,-150.0,0.00022731,2]
[313345856,1707191252873,-1500.0,0.00022732,2]
[313345857,1707191252892,-646.25541133,0.00022732,2]
[313345858,1707191254197,208.0,0.00022117,2]
[313345859,1707191404451,204.99998,0.00022117,2]
[313345860,1707191420431,158.77,0.00021934,2]
[313345861,1707191420646,158.77,0.0002201,2]
[313345862,1707191420846,158.77,0.00022086,2]
[313345863,1707191421061,158.77,0.00022162,2]
[313345864,1707191421260,158.77,0.00022238,2]
[313345865,1707191421493,158.77,0.00022314,2]
[313345866,1707191421698,158.77,0.00022391,2]
[313345867,1707191421972,158.77,0.00022467,2]
[313345885,1707191432059,-158.77,0.00022543,2]
[313345886,1707191432072,-158.77,0.00022619,2]
[313345887,1707191432085,-500.0,0.00022687,2]
[313345888,1707191432098,-100.28255189,0.00022687,2]
[313345889,1707191432114,-399.71744811,0.00022687,2]
[313345890,1707191432127,-500.0,0.00022687,2]
[313345891,1707191432141,-500.0,0.00022687,2]
[313345892,1707191432154,-500.0,0.00022687,2]
[313345893,1707191432167,-502.682,0.00022687,2]
[313345894,1707191432180,-158.77,0.00022695,2]
[313345895,1707191432193,-533.57391915,0.00022701,2]
[313345896,1707191432205,-150.0,0.0002272,2]
[313345897,1707191432217,-853.74458867,0.00022732,2]
[313345898,1707191432230,-1000.0,0.00022733,2]
[313345899,1707191432242,-150.0,0.00022735,2]
[313345900,1707191432255,-1500.0,0.00022741,2]
[313345901,1707191432268,-203.77609903,0.00022747,2]
[313345902,1707191432281,-150.0,0.00022747,2]
[313345903,1707191432295,-150.0,0.0002275,2]
[313345904,1707191432308,-268.13534969,0.00022751,2]
[313345905,1707191432320,-150.0,0.00022751,2]
[313345906,1707191432334,-152.90583872,0.00022752,2]
[313345907,1707191432346,-150.0,0.00022753,2]
[313345908,1707191432358,-150.0,0.00022754,2]
[313345909,1707191432370,-150.0,0.00022758,2]
[313345910,1707191432386,-1500.0,0.00022759,2]
[313345911,1707191432398,-150.0,0.00022759,2]
[313345912,1707191432411,-150.0,0.00022763,2]
[313345913,1707191432424,-150.0,0.00022764,2]
[313345914,1707191432437,-155.26113331,0.00022766,2]
[313345915,1707191432449,-150.0,0.0002277,2]
[313345916,1707191432461,-158.77,0.00022772,2]
[313345917,1707191432473,-1500.0,0.00022772,2]
[313345918,1707191432483,-192.66997871,0.00022773,2]
[313345919,1707191432492,-216.20404059,0.00022774,2]
[313345920,1707191432502,-268.13534969,0.00022776,2]
[313345921,1707191432511,-150.0,0.0002278,2]
[313345922,1707191432521,-223.88252378,0.00022784,2]
[313345923,1707191432530,-509.04573738,0.00022784,2]
[313345924,1707191432718,-351.23791038,0.00022784,2]
[313345925,1707191432729,-6226.73617091,0.00022786,2]
[313345926,1707191432741,-814.15995737,0.00022786,2]
[313345927,1707191432753,-32593.79329845,0.00022786,2]
[313345928,1707191432762,-150.0,0.0002279,2]
[313345929,1707191432772,-1500.0,0.00022791,2]
[313345930,1707191432781,-150.0,0.00022791,2]
[313345931,1707191432791,-120088.01043518,0.00022794,2]
[313345932,1707191432803,-147202.40528209,0.00022794,2]
[313345933,1707191432814,-68291.97682439,0.00022794,2]
[313345934,1707191432825,-18449.19894435,0.00022794,2]
[313345935,1707191432842,-391.73008624,0.00022794,2]
[313345936,1707191432854,-3333.82674256,0.00022794,2]
[313345937,1707191432865,-528.87484806,0.00022794,2]
[313345947,1707191437925,-847.22200004,0.00022794,2]
[313345948,1707191437989,-1063.47846406,0.00022794,2]
[313345949,1707191438014,-7990.22023156,0.00022794,2]
[313345950,1707191438033,-5399.64991999,0.00022794,2]
[313345951,1707191438052,-903.352006,0.00022794,2]
[313345952,1707191438163,-52914.74630686,0.00022794,2]
[313345953,1707191438175,-13040.08823523,0.00022794,2]
[313345954,1707191438188,-761.9585976,0.00022794,2]
[313345955,1707191438203,-664.7155546,0.00022794,2]
[313345956,1707191438225,-971.933,0.00022794,2]
[313345957,1707191438242,-452.64,0.00022794,2]
[313345958,1707191438255,-300.0,0.00022794,2]
[313345959,1707191438277,-307.89,0.00022794,2]
[313345960,1707191438290,-21556.36594224,0.00022794,2]
[313345961,1707191438303,-1609.55802822,0.00022794,2]
[313345962,1707191438315,-421.78588728,0.00022794,2]
[313345963,1707191438339,-36844.74469071,0.00022794,2]
[313345964,1707191438352,-16372.35378016,0.00022794,2]
[313345965,1707191438364,-66349.81812563,0.00022794,2]
[313345966,1707191438377,-39858.17334877,0.00022794,2]
[313345967,1707191438389,-25942.58968721,0.00022794,2]
[313345968,1707191440611,-50050.91267389,0.00022794,2]
[313345969,1707191441380,-584.23616513,0.00022794,2]
[313345985,1707191443013,-354.8153205,0.00022794,2]
[313345994,1707191443076,-5908.85120282,0.00022794,2]
[313345995,1707191443088,-1572.74077757,0.00022794,2]
[313345996,1707191443237,-28360.89267319,0.00022794,2]
[313345997,1707191443247,-30849.4065,0.00022795,2]
[313345998,1707191443256,-46932.3833333,0.00022795,2]
[313345999,1707191443266,-20376.0094336,0.00022795,2]
[313346000,1707191443276,-50102.353,0.00022795,2]
[313346001,1707191443285,-31120.4130114,0.00022795,2]
[313346002,1707191443295,-50102.353,0.00022795,2]
[313346003,1707191443304,-9767.4978246,0.00022795,2]
[313346004,1707191443314,-264.35319098,0.00022797,2]
[313346005,1707191443323,-155.57324332,0.00022797,2]
[313346006,1707191443333,-218.29196249,0.00022797,2]
[313346007,1707191443342,-1516.96635245,0.00022797,2]
[313346008,1707191443352,-258.72904032,0.00022797,2]
[313346009,1707191443361,-290.12844095,0.00022797,2]
[313346010,1707191443371,-271.34662638,0.00022797,2]
[313346011,1707191443380,-155.60757147,0.00022797,2]
[313346012,1707191443390,-156.00163729,0.00022797,2]
[313346013,1707191443400,-199.07634137,0.00022797,2]
[313346015,1707191443409,-507.36700327,0.00022797,2]
[313346016,1707191443418,-199.87069569,0.00022797,2]
[313346018,1707191443428,-408.69337015,0.00022797,2]
[313346019,1707191443438,-299.10886143,0.00022797,2]
[313346020,1707191443447,-2998.82566332,0.00022797,2]
[313346021,1707191443456,-257.15807778,0.00022797,2]
[313346023,1707191443465,-1685.12269382,0.00022797,2]
[313346025,1707191443474,-4941.8578597,0.00022797,2]
[313346027,1707191443484,-150.0,0.00022797,2]
[313346028,1707191443493,-408.6434196,0.00022798,2]
[313346030,1707191443502,-155.59425987,0.00022798,2]
[313346032,1707191443511,-155.34905577,0.00022798,2]
[313346034,1707191443521,-1561.23906369,0.00022798,2]
[313346037,1707191443530,-1329.34697374,0.00022799,2]
[313346038,1707191443539,-156.31796787,0.00022799,2]
[313346040,1707191443549,-155.62955408,0.00022799,2]
[313346042,1707191443558,-947.35017019,0.00022799,2]
[313346044,1707191443567,-155.77506283,0.00022799,2]
[313346046,1707191443577,-155.46762627,0.00022799,2]
[313346049,1707191443587,-155.91965187,0.00022799,2]
[313346050,1707191443596,-155.80535637,0.00022799,2]
[313346051,1707191443605,-156.11652084,0.00022799,2]
[313346052,1707191443615,-228.51172163,0.00022799,2]
[313346053,1707191443624,-228.94236889,0.00022799,2]
[313346054,1707191443634,-594.0362628,0.00022799,2]
[313346055,1707191443643,-534.24295506,0.00022799,2]
[313346056,1707191443653,-514.14314716,0.00022799,2]
[313346057,1707191443663,-529.48995825,0.00022799,2]
[313346058,1707191443672,-281.84320057,0.000228,2]
[313346059,1707191443681,-277.05981655,0.000228,2]
[313346060,1707191443830,-3309.97832316,0.000228,2]
[313346061,1707191443839,-268.13534969,0.000228,2]
[313346062,1707191443848,-150.0,0.00022802,2]
[313346063,1707191443858,-150.0,0.00022804,2]
[313346064,1707191443867,-150.0,0.00022806,2]
[313346065,1707191443877,-2000.0,0.00022807,2]
[313346066,1707191443886,-200.0,0.00022807,2]
[313346067,1707191443895,-150.0,0.00022807,2]
[313346068,1707191443905,-1500.0,0.00022808,2]
[313346069,1707191443914,-150.0,0.00022809,2]
[313346070,1707191443923,-150.0,0.0002281,2]
[313346071,1707191443933,-300.0,0.0002281,2]
[313346072,1707191443942,-300.0,0.00022811,2]
[313346073,1707191443951,-150.0,0.00022815,2]
[313346074,1707191443963,-150.0,0.00022822,2]
[313346075,1707191443972,-268.13534969,0.00022825,2]
[313346076,1707191443981,-150.0,0.00022827,2]
[313346077,1707191443990,-150.0,0.00022838,2]
[313346078,1707191444001,-150.0,0.00022844,2]
[313346079,1707191444010,-150.0,0.00022845,2]
[313346080,1707191444019,-158.77,0.00022848,2]
[313346081,1707191444030,-150.0,0.00022848,2]
[313346082,1707191444040,-150.0,0.00022849,2]
[313346083,1707191444049,-300.0,0.0002285,2]
[313346084,1707191444059,-268.13534969,0.0002285,2]
[313346085,1707191444068,-1500.0,0.00022855,2]
[313346086,1707191444077,-150.0,0.0002286,2]
[313346087,1707191444086,-150.0,0.00022865,2]
[313346088,1707191444095,-150.0,0.00022865,2]
[313346089,1707191444104,-1500.0,0.00022871,2]
[313346090,1707191444114,-268.13534969,0.00022875,2]
[313346091,1707191444123,-259.14772973,0.00022882,2]
[313346092,1707191444133,-531.31679949,0.00022882,2]
[313346093,1707191444142,-1385.89431392,0.00022882,2]
[313346094,1707191444152,-8846.31029469,0.00022884,2]
[313346095,1707191444161,-204.78940017,0.00022893,2]
[313346096,1707191444170,-150.0,0.00022894,2]
[313346097,1707191444179,-150.0,0.00022894,2]
[313346098,1707191444188,-5000.0,0.00022898,2]
[313346099,1707191444198,-150.0,0.00022899,2]
[313346100,1707191444207,-681.94730933,0.00022899,2]
[313346101,1707191444215,-634.4013418,0.00022899,2]
[313346102,1707191444224,-1444.86964806,0.00022899,2]
[313346103,1707191444234,-956.51544892,0.000229,2]
[313346104,1707191444243,-268.13534969,0.000229,2]
[313346105,1707191444252,-157.18669528,0.000229,2]
[313346106,1707191444261,-150.0,0.00022903,2]
[313346107,1707191444271,-166.91230757,0.00022907,2]
[313346108,1707191444280,-150.0,0.00022907,2]
[313346109,1707191444289,-150.0,0.00022911,2]
[313346110,1707191444299,-150.0,0.00022912,2]
[313346111,1707191444308,-1500.0,0.00022913,2]
[313346112,1707191444317,-300.0,0.00022915,2]
[313346113,1707191444326,-150.0,0.00022923,2]
[313346114,1707191444335,-158.77,0.00022924,2]
[313346115,1707191444345,-150.0,0.00022932,2]
[313346116,1707191444354,-150.0,0.00022943,2]
[313346117,1707191444363,-150.0,0.00022943,2]
[313346118,1707191444373,-300.0,0.00022945,2]
[313346119,1707191444383,-150.0,0.00022951,2]
[313346120,1707191444393,-150.0,0.00022952,2]
[313346121,1707191444402,-150.0,0.00022971,2]
[313346122,1707191444412,-150.0,0.00022971,2]
[313346123,1707191444422,-150.0,0.00022976,2]
[313346124,1707191444431,-150.0,0.00022979,2]
[313346125,1707191444441,-150.0,0.00022979,2]
[313346126,1707191444451,-155.48422301,0.00022982,2]
[313346127,1707191444461,-294.16167956,0.00022982,2]
[313346128,1707191444471,-4282.79175561,0.00022982,2]
[313346129,1707191444483,-360.8678674,0.00022982,2]
[313346130,1707191444492,-155.65417101,0.00022982,2]
[313346131,1707191444502,-150.0,0.00022982,2]
[313346132,1707191444512,-150.0,0.00022983,2]
[313346133,1707191444521,-31832.6438999,0.00022984,2]
[313346134,1707191444531,-32815.8812999,0.00022984,2]
[313346135,1707191444540,-41376.0966666,0.00022984,2]
[313346136,1707191444550,-35819.8099999,0.00022984,2]
[313346137,1707191444559,-17954.0311405,0.00022984,2]
[313346138,1707191444569,-15532.0528474,0.00022984,2]
[313346139,1707191444578,-43004.4118,0.00022984,2]
[313346140,1707191444587,-26711.62084,0.00022984,2]
[313346141,1707191444596,-17224.35979339,0.00022984,2]
[313346142,1707191444614,-1347.09854378,0.00022984,2]
[313346143,1707191444627,-24432.95346283,0.00022984,2]
[313346144,1707191444636,-1749.81323317,0.00022984,2]
[313346150,1707191446220,-227.10852919,0.00022793,2]
[313346151,1707191446230,-2400.078127,0.00022984,2]
[313346152,1707191446242,-4230.92673193,0.00022984,2]
[313346153,1707191446252,-150.0,0.00022985,2]
[313346154,1707191446262,-2019.0,0.00022986,2]
[313346155,1707191446271,-156.29371843,0.00022988,2]
[313346156,1707191446280,-223.88252378,0.00022988,2]
[313346157,1707191446290,-1500.0,0.0002299,2]
[313346158,1707191446300,-223.88252378,0.0002299,2]
[313346159,1707191446309,-300.0,0.00022992,2]
[313346160,1707191446319,-155.40755986,0.00022998,2]
[313346161,1707191446328,-160.49859789,0.00022998,2]
[313346162,1707191446337,-157.34868034,0.00022998,2]
[313346163,1707191446347,-168.37993501,0.00022998,2]
[313346164,1707191446356,-310.17962013,0.00022998,2]
[313346165,1707191446366,-2754.2862681,0.00022998,2]
[313346166,1707191446375,-371.06691339,0.00022998,2]
[313346167,1707191446386,-117076.57810959,0.00022998,2]
[313346168,1707191446415,-345.8142608,0.00022998,2]
[313346169,1707191446492,-763.13157896,0.00022998,2]
[313346170,1707191446505,-8128.05487611,0.00022998,2]
[313346172,1707191476044,176.99,0.00022,2]
[313346173,1707191520877,635.31047234,0.00022075,2]
[313346174,1707191522167,153.06786787,0.00022,2]
[313346175,1707191565193,672.06,0.00021887,2]
[313346176,1707191573659,1559.74864993,0.00015,14]
[313346177,1707191794844,186.23,0.00021844,2]
[313346178,1707191829225,150.0,0.00021842,2]
[313346179,1707191833553,199.44,0.00021842,2]
[313346180,1707191888226,154.44,0.00022003,2]
[313346181,1707191888443,154.44,0.00022147,2]
[313346182,1707191888663,154.44,0.0002229,2]
[313346183,1707191888869,154.44,0.00022433,2]
[313346184,1707191910530,3729.87608564,0.00022692,4]
[313346185,1707191987333,462.35,0.00021725,2]
[313346186,1707191991687,155.25,0.00021725,2]
[313346187,1707192016183,151.24,0.00019807,2]
[313346188,1707192016382,151.24,0.00022071,2]
[313346189,1707192048715,151.0206,0.00023,3]
[313346190,1707192049278,151.0206,0.00023,3]
[313346191,1707192049948,151.0206,0.00023,3]
[313346192,1707192050659,151.0206,0.00023,3]
[313346193,1707192051358,151.0206,0.00023,3]
[313346194,1707192084118,151.0206,0.00023,3]
[313346195,1707192084796,151.0206,0.00023,3]
[313346196,1707192085527,151.0206,0.00023,3]
[313346197,1707192086267,151.0206,0.00023,3]
[313346198,1707192087011,151.0206,0.00023,3]
[313346199,1707192111547,176.99,0.00022,2]
[313346200,1707192187049,2500.0,0.00022494,2]
[313346201,1707192193051,541.4513,0.00022494,2]
[313346202,1707192240558,150.0,0.00022,2]
[313346203,1707192323857,432.0583,0.00022494,2]
[313346204,1707192342619,2269.295,0.00022494,2]
[313346205,1707192395740,154.44,0.00021892,2]
[313346206,1707192395951,154.44,0.00022177,2]
[313346207,1707192396158,154.44,0.00022462,2]
[313346208,1707192410237,155.25,0.00021735,2]
[313346209,1707192435087,-531.08932322,0.00022531,2]
[313346210,1707192435108,-712.78,0.00022532,2]
[313346211,1707192435129,-709.94,0.00022532,2]
[313346212,1707192435149,-710.64,0.0002254,2]
[313346213,1707192435169,-176.99,0.00022548,2]
[313346214,1707192435189,-150.0,0.00022548,2]
[313346215,1707192435209,-619.09737811,0.00022593,2]
[313346216,1707192435228,-3042.2454,0.00022594,2]
[313346217,1707192435251,-19375.34232719,0.00022594,2]
[313346218,1707192443758,151.24,0.00019936,2]
[313346219,1707192443946,151.24,0.00022466,2]
[313346220,1707192450366,1208.2677386,0.00022496,2]
[313346221,1707192453090,-490.12289227,0.00022593,2]
[313346222,1707192453110,-5025.80264654,0.00022594,2]
[313346223,1707192610252,1000.0,0.00021883,2]
[313346231,1707192632225,-167.0,0.00022508,2]
[313346232,1707192632234,-186.62981947,0.00022562,2]
[313346233,1707192632246,-1317.00382071,0.00022562,2]
[313346234,1707192632255,-139.1805422,0.00022594,2]
[313346235,1707192632267,-411.68315571,0.00022594,2]
[313346236,1707192632279,-53021.57066884,0.00022594,2]
[313346237,1707192632292,-327.01287504,0.00022594,2]
[313346238,1707192632304,-499.82864977,0.00022594,2]
[313346239,1707192632320,-182840.96959832,0.00022594,2]
[313346240,1707192632335,-74873.07363639,0.00022594,2]
[313346241,1707192632344,-499.99,0.00022662,2]
[313346242,1707192632354,-200.0,0.00022682,2]
[313346243,1707192632365,-4251.2872904,0.00022692,2]
[313346244,1707192632375,-1205.01901313,0.00022692,2]
[313346245,1707192632384,-258.82614046,0.00022693,2]
[313346246,1707192632394,-36738.5933,0.00022694,2]
[313346247,1707192632403,-112724.38153232,0.00022694,2]
[313346248,1707192632415,-7600.81963993,0.00022694,2]
[313346249,1707192632444,-394.61416969,0.00022694,2]
[313346264,1707192638236,-100499.35924303,0.00022694,2]
[313346265,1707192638395,-728.69447258,0.00022694,2]
[313346266,1707192638408,-741.27723955,0.00022694,2]
[313346267,1707192638419,-420.8888349,0.00022694,2]
[313346268,1707192638431,-313.89851893,0.00022694,2]
[313346269,1707192640773,-4282.63383082,0.00022694,2]
[313346270,1707192641461,-7689.72850484,0.00022694,2]
[313346271,1707192641475,-5945.24901341,0.00022694,2]
[313346272,1707192641484,-150.86737057,0.00022719,2]
[313346273,1707192641495,-300.0,0.00022729,2]
[313346274,1707192641504,-2551.10241075,0.00022729,2]
[313346275,1707192641517,-758.33758925,0.00022729,2]
[313346276,1707192641526,-150.0,0.00022737,2]
[313346277,1707192641536,-150.0,0.00022737,2]
[313346278,1707192641545,-150.0,0.00022742,2]
[313346279,1707192641555,-154.44,0.00022748,2]
[313346280,1707192641564,-150.0,0.00022748,2]
[313346281,1707192641573,-7431.00627537,0.00022768,2]
[313346282,1707192641585,-348.99372463,0.00022768,2]
[313346283,1707192641594,-150.0,0.00022772,2]
[313346284,1707192641604,-150.0,0.00022776,2]
[313346285,1707192641613,-150.0,0.00022776,2]
[313346286,1707192641633,-150.0,0.00022776,2]
[313346287,1707192641643,-150.0,0.00022779,2]
[313346288,1707192641653,-150.0,0.00022802,2]
[313346289,1707192641664,-150.0,0.00022811,2]
[313346290,1707192641674,-1500.0,0.00022811,2]
[313346291,1707192641683,-150.0,0.00022817,2]
[313346292,1707192641693,-150.0,0.00022821,2]
[313346293,1707192641704,-150.0,0.00022828,2]
[313346294,1707192641713,-150.0,0.00022833,2]
[313346295,1707192641723,-150.0,0.00022839,2]